[Event "44th Chess Olympiad Women 2022"]
[Site "Chennai"]
[Date "2022.08.05"]
[Round "7.12"]
[White "Savina, Anastasia"]
[Black "Radikovic, Anamarija"]
[Result "1/2-1/2"]
[WhiteElo "2377"]
[BlackElo "2099"]
[Annotator "TA"]
[PlyCount "150"]
[EventDate "2022.??.??"]
[TimeControl "60"]

{[%evp 14,150,19,25,24,22,14,0,0,0,0,0,0,14,16,18,53,31,60,27,50,0,51,48,82,0,
0,0,0,0,-5,-7,0,-14,0,-39,-31,-34,-38,-41,-12,-66,-38,-109,1462,-4,-13,-66,-24,
-24,0,-18,0,-70,0,0,0,-75,0,-18,0,0,0,0,-14,-1,7,-12,-21,-30,29,31,40,0,57,45,
53,45,40,42,52,35,39,31,39,36,44,-12,-3,-86,-78,-83,-71,-93,-68,-116,-116,-219,
-235,-388,-374,-437,-417,-477,-290,-315,-302,-481,-459,-517,-517,-510,-500,
-501,-501,-501,-456,-923,-868,-6087,-6102,-2601,-2227,-2322,-1433,-822,-671,
-6382,-8,-8,-8,-8,-8,-8,-8,-8,-8,-8,-8]} 1. d4 {[%emt 0:00:05]} Nf6 {[%emt 0:
00:00]} 2. c4 {[%emt 0:00:07]} g6 {[%emt 0:00:04]} 3. Nc3 {[%emt 0:00:07]} Bg7
{[%emt 0:00:05]} 4. e4 {[%emt 0:00:04]} d6 {[%emt 0:00:04]} 5. Be2 {[%emt 0:00:
00]} O-O {[%emt 0:00:07]} 6. h4 {[%emt 0:00:40][%cal Yh2h4,Yh4h5,Yh5h6]} c5 {
[%emt 0:00:40]} 7. d5 {[%emt 0:00:05]} e6 {[%emt 0:00:04]} 8. h5 {[%emt 0:00:
24]} exd5 {[%emt 0:00:26] E73: King's Indian: Averbakh Variation without 6...
c5.} 9. exd5 {[%emt 0:00:14]} Re8 {[%emt 0:00:18]} 10. h6 {[%emt 0:00:00]} Bh8
{[%emt 0:00:05]} 11. Bg5 {[%emt 0:00:04]} Qb6 {[%emt 0:13:13]} 12. b3 {[%emt 0:
00:24] [#]} Ng4 $146 {[%emt 0:09:31]} ({Predecessor:} 12... Ne4 13. Nxe4 Rxe4
14. Kf1 Na6 15. Bd3 Bg4 16. f3 Rd4 17. Qe2 Bd7 18. Re1 Nb4 19. Bxg6 Nxd5 20.
Bxh7+ Kxh7 {½-½ (33) Oparin,G (2674)-Nakamura,H (2750) Berlin 2022}) 13. Rc1
{[%emt 0:10:44]} Bd4 {[%emt 0:01:59]} 14. Nh3 {[%emt 0:01:53]} Qa5 {[%emt 0:13:
21]} 15. Bd2 {[%emt 0:12:40]} ({But not} 15. O-O Nxf2 16. Nxf2 Bxc3 $11) 15...
Qd8 {[%emt 0:02:56]} 16. Kf1 {[%emt 0:03:17]} f5 {[%emt 0:20:50]} 17. Bg5 {
[%emt 0:17:03]} (17. Bf4 $14) 17... Bf6 {[%emt 0:06:21]} (17... Nxf2 $1 $11 18.
Qe1 (18. Qc2 Qxg5 19. Nxg5 Nxh1 $11) 18... Ng4 19. Bxd8 Ne3+ 20. Kg1 Ng4+ 21.
Kf1 Ne3+ 22. Kg1 Ng4+ 23. Kf1) 18. Qd2 $14 {[%emt 0:05:50]} Nd7 {[%emt 0:04:17]
} 19. f3 {[%emt 0:17:55]} (19. Bf4 $16) 19... Nge5 $11 {[%emt 0:00:00]} 20.
Bxf6 {[%emt 0:02:38]} Nxf6 {[%emt 0:00:16]} 21. Nf4 {[%emt 0:06:10] Prevents
Nh5.} a6 {[%emt 0:02:40]} 22. Re1 {[%emt 0:00:58]} Bd7 {[%emt 0:02:10]} 23. a4
{[%emt 0:03:25]} Re7 {[%emt 0:02:41]} 24. Bd1 {[%emt 0:06:06]} Qf8 {[%emt 0:01:
04]} 25. Kf2 {[%emt 0:02:06]} Rae8 {[%emt 0:00:53]} 26. a5 {[%emt 0:00:00]} Nf7
{[%emt 0:04:16] White should prevent ...Rxe1.} 27. Re2 {[%emt 0:00:00] Active
counter play!} (27. Rxe7 $1 $11 Qxe7 28. Bc2) 27... Re5 (27... g5 $5 {[%cal
Rg5f4]} 28. Ne6 Bxe6 29. dxe6 Rxe6 $17) 28. Rxe5 {[%emt 0:00:30]} (28. Bc2 $15)
28... Qe7 $2 {[%emt 0:01:17]} (28... dxe5 $17 29. Nfe2 e4) 29. Nd3 $2 Nxe5 {
[%emt 0:01:59]} 30. Nf4 {[%emt 0:01:48]} (30. Nxe5 $11 dxe5 31. Qe3) 30... Nf7
{[%emt 0:01:06]} 31. Nce2 {[%emt 0:00:51]} Ng5 {[%emt 0:00:00]} 32. Ng3 {
[%emt 0:00:45] Inhibits Nfe4+.} Nf7 {[%emt 0:00:17]} 33. Nd3 {[%emt 0:02:15]} (
33. Nge2 $11) 33... Ne5 {[%emt 0:00:20]} ({Black should play} 33... g5 $1 $15)
34. Nf4 {[%emt 0:00:31]} Nf7 {[%emt 0:01:49]} 35. Nd3 {[%emt 0:03:17]} (35.
Nge2 $11 {remains equal.}) 35... Ne5 {[%emt 0:03:32]} (35... g5 $17) 36. Be2 {
[%emt 0:00:51]} Nxd3+ {[%emt 0:01:36]} 37. Bxd3 {[%emt 0:00:03]} Qe5 {[%emt 0:
00:31] [#] Hoping for ...Qd4+.} 38. Ne2 {[%emt 0:00:00] Prevents Qd4+.} Kf7 {
[%emt 0:00:53]} 39. g3 {[%emt 0:01:15]} Bc8 {[%emt 0:00:55]} 40. Rb1 {[%emt 0:
00:45]} Nd7 {[%emt 0:01:38]} 41. Bc2 {[%emt 0:00:00]} Re7 {[%emt 0:30:35]} ({
Black should try} 41... Qf6) 42. Nf4 {[%emt 0:00:00]} Nf6 {[%emt 0:00:00]} 43.
Bd1 {[%emt 0:00:00]} Ng8 {[%emt 0:00:00]} ({Better is} 43... g5 $11 44. Ng2 (
44. Nd3 $2 Qd4+ 45. Kg2 Re3 $19) 44... g4) 44. Nh3 {[%emt 0:00:00]} f4 {
[%emt 0:00:00]} 45. Qxf4+ {[%emt 0:00:00]} Qxf4 {[%emt 0:00:00]} 46. Nxf4 {
[%emt 0:00:00]} Nxh6 {[%emt 0:00:00]} 47. g4 {[%emt 0:00:00]} Kf6 {[%emt 0:00:
00]} 48. b4 {[%emt 0:00:00]} cxb4 {[%emt 0:00:00]} 49. Rxb4 {[%emt 0:00:00]}
Nf7 {[%emt 0:00:00]} 50. Rb6 {[%emt 0:00:44]} (50. Be2 $14) 50... Rc7 {[%emt 0:
00:00]} 51. Bb3 {[%emt 0:03:30]} (51. Rb4 $11) 51... Rc5 $17 {[%emt 0:00:14]}
52. Nd3 {[%emt 0:01:06]} Rxa5 {[%emt 0:00:05]} 53. Ke3 {[%emt 0:00:32]} h5 {
[%emt 0:01:56]} 54. gxh5 {[%emt 0:00:38]} (54. Bc2 $15) 54... gxh5 {[%emt 0:00:
05]} 55. Bd1 {[%emt 0:00:31]} (55. c5 $17) 55... Ra3 $19 {[%emt 0:01:10]} 56.
f4 $2 {[%emt 0:00:32]} (56. Be2 {was worth a try.}) 56... h4 {[%emt 0:02:26]}
57. Be2 {[%emt 0:00:26]} h3 {[%emt 0:01:03]} 58. Rb1 {[%emt 0:00:33]} Rc3 {
[%emt 0:01:06]} 59. Kd4 {[%emt 0:00:31]} Rc2 {[%emt 0:00:16]} 60. Bf3 {[%emt 0:
00:22]} (60. Ke3 $142) 60... Bf5 {[%emt 0:00:00]} 61. Rxb7 {[%emt 0:00:37]} Rd2
{[%emt 0:00:13][%csl Gf5][%cal Rd2d3] [#]} 62. Be4 {[%emt 0:00:19] Black must
now prevent Bxf5.} h2 {[%emt 0:00:44]} 63. Rb1 {[%emt 0:00:02]} Nh6 {[%emt 0:
00:36] aiming for ...Bxe4.} 64. Ke3 {[%emt 0:00:00]} Ra2 {[%emt 0:00:31]} 65.
Bf3 {[%emt 0:00:30]} (65. Rh1 $142 Bxe4 66. Kxe4) 65... Ra3 {[%emt 0:00:24]}
66. Rd1 {[%emt 0:00:28]} Ng4+ {[%emt 0:00:19]} 67. Kd4 {[%emt 0:00:32]} Rxd3+ {
[%emt 0:00:51]} 68. Rxd3 {[%emt 0:00:11]} Bxd3 {[%emt 0:00:05]} 69. Kxd3 {
[%emt 0:00:45] Endgame KB-KN} Nf2+ {[%emt 0:00:35]} 70. Kc3 {[%emt 0:00:34]}
h1=Q $2 {[%emt 0:00:48]} (70... Kf5 $19 71. c5 Ne4+ 72. Kb4 Nxc5) 71. Bxh1 $11
{[%emt 0:00:01] The position is equal.} Nxh1 {[%emt 0:00:07]} 72. c5 $1 {
[%emt 0:00:33]} dxc5 {[%emt 0:01:00] ( -> ...Ke7)} 73. Kc4 {[%emt 0:00:09]} a5
{[%emt 0:00:22]} 74. Kxc5 {[%emt 0:00:00] Threatens to win with d6.} Ng3 {
[%emt 0:00:08]} 75. Kb5 {[%emt 0:00:15]} Ne4 {[%emt 0:00:10] Never resign too
early! Weighted Error Value: White=0.42/ Black=0.17 (very precise)} 1/2-1/2

[Event "44th Chess Olympiad Women 2022"]
[Site "Chennai"]
[Date "2022.08.05"]
[Round "7.13"]
[White "Abrahamyan, Tatev"]
[Black "Sarquis, Maria Belen"]
[Result "1-0"]
[WhiteElo "2291"]
[BlackElo "2072"]
[Annotator "ChessBase"]
[PlyCount "55"]
[EventDate "2022.??.??"]
[TimeControl "60"]

1. e4 {[%emt 0:00:04]} e5 {[%emt 0:00:04]} 2. d4 {[%emt 0:00:16]} exd4 {
[%emt 0:00:48]} 3. Qxd4 {[%emt 0:00:21]} Nc6 {[%emt 0:02:20]} 4. Qc4 {[%emt 0:
00:00]} Nf6 {[%emt 0:02:26]} 5. Nc3 {[%emt 0:00:11]} Bb4 {[%emt 0:17:27]} 6.
Bd2 {[%emt 0:00:05]} O-O {[%emt 0:04:26]} 7. O-O-O {[%emt 0:00:29]} Re8 {
[%emt 0:06:39]} 8. f3 {[%emt 0:00:20]} a5 {[%emt 0:00:57]} 9. g4 {[%emt 0:00:
00]} d6 {[%emt 0:02:06]} 10. Qe2 {[%emt 0:19:49]} Be6 {[%emt 0:05:22]} 11. Kb1
{[%emt 0:06:52]} Ne5 {[%emt 0:06:30]} 12. Qg2 {[%emt 0:06:22]} c6 {[%emt 0:00:
00]} 13. g5 {[%emt 0:03:59]} Nfd7 {[%emt 0:02:11]} 14. f4 {[%emt 0:05:39]} Bxc3
{[%emt 0:07:29]} 15. Bxc3 {[%emt 0:01:51]} Nc4 {[%emt 0:03:03]} 16. Qg3 {
[%emt 0:11:58]} Nc5 {[%emt 0:06:33]} 17. Bd3 {[%emt 0:07:55]} Na4 {[%emt 0:00:
00]} 18. Bf6 {[%emt 0:05:56]} Qb6 {[%emt 0:03:10]} 19. b3 {[%emt 0:01:32]} Na3+
{[%emt 0:03:36]} 20. Kc1 {[%emt 0:01:08]} Nc5 {[%emt 0:00:42]} 21. f5 {[%emt 0:
00:00]} Bd7 {[%emt 0:04:02]} 22. Bb2 {[%emt 0:01:08]} Nb5 {[%emt 0:04:08]} 23.
Bxb5 {[%emt 0:04:32]} cxb5 {[%emt 0:01:14]} 24. Rxd6 {[%emt 0:01:15]} Qd8 {
[%emt 0:01:14]} 25. g6 {[%emt 0:02:00]} f6 {[%emt 0:03:18]} 26. Rxf6 {[%emt 0:
00:00]} gxf6 {[%emt 0:01:37]} 27. Qh4 {[%emt 0:00:03]} Bxf5 {[%emt 0:01:28]}
28. Qxh7+ {[%emt 0:00:14]} 1-0

[Event "44th Chess Olympiad Women 2022"]
[Site "Chennai"]
[Date "2022.08.05"]
[Round "7.13"]
[White "Borda Rodas, Anapaola S."]
[Black "Zatonskih, Anna"]
[Result "1/2-1/2"]
[WhiteElo "2183"]
[BlackElo "2383"]
[Annotator "TA"]
[PlyCount "60"]
[EventDate "2022.??.??"]
[TimeControl "60"]

{[%evp 9,60,17,8,-8,-7,-4,12,4,15,0,12,0,52,50,60,59,76,83,141,109,111,32,124,
116,132,97,244,105,245,237,240,235,243,229,236,0,0,0,0,0,0,0,0,0,0,0,0,0,0,0,0,
0,0]} 1. e4 {[%emt 0:00:06]} e6 {[%emt 0:00:06]} 2. d4 {[%emt 0:00:12]} d5 {
[%emt 0:00:05]} 3. Nc3 {[%emt 0:00:28]} Nc6 {[%emt 0:00:21]} 4. Nf3 {[%emt 0:
00:00]} Nf6 {[%emt 0:00:58]} 5. exd5 {[%emt 0:04:35]} exd5 {[%emt 0:14:45]} 6.
Bd3 {[%emt 0:03:31] C10: French with 3 Nc3: Unusual Black 3rd moves and 3...
dxe4.} Bg4 {[%emt 0:12:20]} 7. Be3 {[%emt 0:04:48]} (7. Bb5 {is more complex.}
Bb4 8. O-O O-O 9. Bxc6 bxc6 10. h3) 7... Be7 {[%emt 0:05:16]} 8. h3 {[%emt 0:
00:00]} Bh5 {[%emt 0:00:44]} 9. g4 {[%emt 0:01:44]} Bg6 {[%emt 0:00:19]} 10.
Ne5 {[%emt 0:03:21]} Bxd3 {[%emt 0:11:21]} (10... Bb4 $11) 11. Qxd3 $14 {
[%emt 0:00:22]} Nb4 {[%emt 0:00:13]} 12. Qe2 {[%emt 0:03:08] [#]} c6 $146 {
[%emt 0:04:15]} ({Predecessor:} 12... O-O 13. a3 Na6 14. O-O-O Rb8 15. Bf4 Ne8
16. Qb5 f6 17. Nc6 bxc6 18. Qxa6 Rb6 19. Qxa7 {½-½ (66) Mednikova,S (2175)
-Petrenko,S (2346) St Petersburg 2006}) 13. a3 {[%emt 0:05:03]} Qa5 {[%emt 0:
00:00]} ({Better is} 13... Na6) 14. O-O {[%emt 0:07:53]} Na6 {[%emt 0:00:42]}
15. b4 {[%emt 0:00:22]} (15. g5 $16 Ne4 16. Nxe4 dxe4 17. f4) 15... Qc7 {
[%emt 0:10:14]} (15... Qd8 $1 $14) 16. Bf4 $36 {[%emt 0:12:28] [#] Threatens
to win with b5. White is on the roll.} Qc8 {[%emt 0:02:15]} 17. b5 {[%emt 0:12:
01] 0x0.00144c781d01dp-1022s more active pieces.} Nb8 {[%emt 0:00:00]} (17...
Nc7 $16 {was called for.}) 18. bxc6 {[%emt 0:01:33]} (18. g5 $18 {and White
stays clearly on top.} Ne4 19. Nxe4 dxe4 20. Qxe4) 18... bxc6 {[%emt 0:03:55]}
(18... Nxc6 $16 19. Nxc6 Qxc6) 19. g5 {[%emt 0:01:20]} Ne4 {[%emt 0:03:22]} 20.
Nxe4 {[%emt 0:03:59]} dxe4 {[%emt 0:00:01]} 21. Qxe4 {[%emt 0:00:35] Hoping
for Rab1.} Qxh3 {[%emt 0:04:02]} 22. Nxc6 $2 {[%emt 0:00:00]} ({White should
play} 22. Rae1 $18 {And now Nc4 would win.} O-O 23. Re3) 22... Qg4+ $11 {
[%emt 0:00:56] The position is equal.} 23. Kh1 {[%emt 0:00:28][%csl Gc6][%cal
Re4e7] [#] Dancing on a razor blade.} Qh4+ {[%emt 0:00:17]} 24. Kg1 {[%emt 0:
00:10][%csl Gc6][%cal Re4e7]} Qg4+ {[%emt 0:00:03]} 25. Kh1 {[%emt 0:00:09]
[%csl Gc6][%cal Re4e7]} Qh4+ {[%emt 0:00:07]} 26. Kg1 {[%emt 0:00:00][%csl Gc6]
[%cal Re4e7]} Qg4+ {[%emt 0:00:11]} 27. Kh1 {[%emt 0:00:06][%csl Gc6][%cal
Re4e7]} Qh4+ {[%emt 0:00:17]} 28. Kg1 {[%emt 0:00:06][%csl Gc6][%cal Re4e7]}
Qg4+ {[%emt 0:00:07]} 29. Kh1 {[%emt 0:00:03][%csl Gc6][%cal Re4e7]} Qh4+ {
[%emt 0:00:05]} 30. Kg1 {[%emt 0:00:04][%csl Gc6][%cal Re4e7]} Qg4+ {[%emt 0:
00:03] Black defended with fortune. Weighted Error Value: White=0.29 (precise)
/Black=0.34} 1/2-1/2

[Event "44th Chess Olympiad Women 2022"]
[Site "Chennai"]
[Date "2022.08.05"]
[Round "7.13"]
[White "Krush, Irina"]
[Black "Campos, Maria Jose"]
[Result "1-0"]
[WhiteElo "2430"]
[BlackElo "2185"]
[Annotator "TA"]
[PlyCount "129"]
[EventDate "2022.??.??"]
[TimeControl "60"]

{[%evp 17,129,23,41,23,32,31,50,34,51,46,51,58,62,58,91,87,88,106,109,76,88,52,
65,28,72,66,87,15,78,43,57,34,72,6,22,0,0,0,0,0,31,28,29,33,39,39,60,77,82,74,
75,56,66,66,37,75,70,69,69,69,69,70,70,56,70,65,63,73,79,73,114,123,128,66,235,
245,247,247,289,225,425,417,345,341,1124,939,1854,1566,2213,1945,1968,2409,
2281,2232,2251,2068,1640,1911,1535,1285,2513,1032,2543,1999,29969,29968,29962,
5155,29981,29982,29981,29982,29982,29983]} 1. d4 {[%emt 0:00:06]} Nf6 {[%emt 0:
00:00]} 2. c4 {[%emt 0:00:12]} e6 {[%emt 0:00:24]} 3. Nf3 {[%emt 0:00:10]} Bb4+
{[%emt 0:00:21]} 4. Bd2 {[%emt 0:01:45]} c5 {[%emt 0:00:35]} 5. Bxb4 {[%emt 0:
00:00]} cxb4 {[%emt 0:00:08]} 6. g3 {[%emt 0:00:22]} O-O {[%emt 0:01:18]} 7.
Bg2 {[%emt 0:00:08]} d6 {[%emt 0:00:49]} 8. O-O {[%emt 0:00:34]} a5 {[%emt 0:
00:00]} 9. a3 {[%emt 0:05:52]} Na6 {[%emt 0:00:06]} 10. Qd3 {[%emt 0:01:27]
E11: Bogo-Indian.} Qc7 {[%emt 0:04:49]} 11. Nbd2 {[%emt 0:00:31] [#]} b6 $146 {
[%emt 0:07:54]} ({Predecessor:} 11... e5 12. Ne1 exd4 13. Qxd4 Re8 14. e3 Rb8
15. Nc2 bxa3 16. Nxa3 Bd7 17. Nb5 Bxb5 18. cxb5 {1-0 (37) Vidit,S (2727)
-Visakh,N (2515) Chess.com INT 2021}) 12. Ne1 {[%emt 0:08:39] White is
slightly better.} Bb7 {[%emt 0:08:14]} 13. Bxb7 {[%emt 0:01:26]} Qxb7 {[%emt 0:
00:00]} 14. Nc2 {[%emt 0:00:11]} e5 {[%emt 0:02:04]} 15. axb4 {[%emt 0:12:29]}
axb4 {[%emt 0:00:29]} 16. e4 {[%emt 0:09:51]} Rfe8 {[%emt 0:04:28]} 17. f3 {
[%emt 0:01:13]} h5 {[%emt 0:03:21]} 18. h4 {[%emt 0:05:02]} Nd7 {[%emt 0:09:20]
} 19. d5 {[%emt 0:03:43]} Ndc5 {[%emt 0:07:38]} 20. Qe2 {[%emt 0:01:57]} g6 {
[%emt 0:03:22]} 21. Kh2 {[%emt 0:04:16]} Qd7 {[%emt 0:08:00]} 22. Rg1 {[%emt 0:
00:00]} (22. b3 $16) 22... Qe7 {[%emt 0:05:47]} (22... b3 $11 23. Na3 Nb4) 23.
Rae1 {[%emt 0:04:40]} Qf6 {[%emt 0:04:38]} 24. Kh3 {[%emt 0:02:42]} Kg7 {
[%emt 0:02:37]} 25. Ra1 {[%emt 0:02:28]} (25. b3 $16) 25... b3 $1 $11 {[%emt 0:
00:00]} 26. Na3 {[%emt 0:00:49]} Nb4 $1 {[%emt 0:02:21]} 27. Rab1 {[%emt 0:00:
00]} Rec8 {[%emt 0:03:26]} 28. Rg2 {[%emt 0:04:40]} Ra5 {[%emt 0:06:48]} 29.
Qe3 {[%emt 0:03:42]} Rxa3 {[%emt 0:01:46]} 30. bxa3 {[%emt 0:00:02]} Nc2 {
[%emt 0:00:15][%csl Ya3,Ye3]} 31. Qc3 {[%emt 0:00:33]} Nxa3 {[%emt 0:01:05]
Pair of Knights!} 32. Rxb3 {[%emt 0:02:19]} Nxb3 {[%emt 0:00:49]} 33. Qxb3 {
[%emt 0:00:02]} Ra8 {[%emt 0:01:01]} 34. Rg1 {[%emt 0:03:35][%cal Yg2g1,Yg1a1,
Ya1a8] Threatens to win with Kg2.} Qd8 {[%emt 0:02:13]} 35. Ra1 {[%emt 0:01:28]
} Qc8+ {[%emt 0:01:20]} 36. Kg2 {[%emt 0:00:06]} Qc5 {[%emt 0:00:00][%cal
Yc5d4]} 37. Nb1 $1 {[%emt 0:01:24]} Nxb1 {[%emt 0:00:29][%cal Ya3b1,Yb1d2,
Yd2c4,Yc4e3]} 38. Rxa8 $14 {[%emt 0:00:19] Endgame KQR-KQN} Nd2 {[%emt 0:00:08]
[%csl Yb3,Yc4]} 39. Qd3 {[%emt 0:02:41]} Nxc4 {[%emt 0:00:12]} 40. Ra1 $36 {
[%emt 0:00:43] White fights for an advantage.} b5 {[%emt 0:02:06]} 41. Kh3 $1 {
[%emt 0:09:14]} Qf2 {[%emt 0:02:44]} 42. Rf1 $1 {[%emt 0:00:32]} Qc5 {[%emt 0:
02:37]} 43. Qe2 $1 {[%emt 0:03:21] Against Nb2} Ne3 {[%emt 0:02:46]} 44. Re1 $1
{[%emt 0:01:54]} Nc4 {[%emt 0:00:00] [#]} 45. Kh2 {[%emt 0:01:21]} (45. g4 $1
$16) 45... Na3 $2 {[%emt 0:03:24] [#] A mistake that costs the game.} (45...
Qb4 $14) 46. g4 $1 $18 {[%emt 0:00:00]} hxg4 {[%emt 0:03:00]} 47. fxg4 {
[%emt 0:00:01]} b4 {[%emt 0:01:20]} 48. Rf1 {[%emt 0:02:22] Strongly
threatening Qf3.} Qc7 $2 {[%emt 0:05:35]} (48... Nc4 49. Rf3 (49. Qf3 f5 $11) (
49. Rc1 b3 $11) 49... Qd4) 49. Qf3 {[%emt 0:00:00] Intending Qf6+ and mate.}
Qe7 {[%emt 0:02:45] Prevents Qf6+.} 50. g5 {[%emt 0:00:01]} Nc2 $2 {[%emt 0:08:
19]} (50... Nc4 51. Rf2 Kg8) 51. Qf6+ {[%emt 0:03:22]} Qxf6 {[%emt 0:00:21]}
52. Rxf6 {[%emt 0:00:02] KR-KN} ({Not} 52. gxf6+ Kh6 $18) 52... Kf8 {[%emt 0:
03:56]} 53. Rxd6 {[%emt 0:00:08]} Nd4 {[%emt 0:00:54]} 54. Rb6 {[%emt 0:00:29]}
b3 {[%emt 0:00:23]} 55. Rb7 {[%emt 0:00:00]} Nf3+ {[%emt 0:00:32]} 56. Kg2 {
[%emt 0:01:05]} Nd2 {[%emt 0:00:14]} 57. Rb4 {[%emt 0:02:52]} Ke7 {[%emt 0:00:
13]} 58. Kf2 {[%emt 0:00:36] Ke2 would kill now.} b2 {[%emt 0:01:09]} 59. Rxb2
{[%emt 0:00:13]} Nxe4+ {[%emt 0:00:05]} 60. Ke3 {[%emt 0:00:39]} Nc5 {[%emt 0:
01:56]} 61. Rb6 {[%emt 0:00:19]} Nd7 {[%emt 0:00:46]} 62. Rc6 {[%emt 0:00:20]}
(62. Ra6 $142 Ke8 63. d6 f5 64. gxf6 Nxf6 65. Ra7 Kf8 66. Rc7 Ke8 67. Rg7)
62... Nf8 {[%emt 0:00:37]} 63. Ke4 {[%emt 0:00:23] White mates.} Nd7 {[%emt 0:
00:06]} 64. Rc7 {[%emt 0:00:09]} Kd6 {[%emt 0:00:33] [#]} 65. Rxd7+ $1 {
[%emt 0:00:18] Weighted Error Value: White=0.13 (very precise) /Black=0.56} 1-0

[Event "44th Chess Olympiad Women 2022"]
[Site "Chennai"]
[Date "2022.08.05"]
[Round "7.13"]
[White "Zuriel, Marisa"]
[Black "Tokhirjonova, Gulrukhbegim"]
[Result "0-1"]
[WhiteElo "2174"]
[BlackElo "2329"]
[Annotator "TA"]
[PlyCount "114"]
[EventDate "2022.??.??"]
[TimeControl "60"]

{[%evp 17,114,-8,-8,-5,-7,-11,3,-33,-1,-11,-8,-13,-14,-21,-20,-17,-12,-16,-18,
-27,-31,-44,-17,-24,0,-4,0,-5,-5,-1,0,-20,0,-1,0,0,-1,-13,-15,-17,-15,-17,-18,
-99,-33,-24,-28,-30,-28,-28,-27,-117,-45,-195,-206,-197,-192,-411,-411,-411,
-168,-411,-411,-411,-411,-435,-374,-338,-74,-147,-40,-147,-147,-814,-786,-744,
-592,-12744,-8711,-29972,-29973,-29974,-29975,-29974,-29976,-29978,-29978,
-29982,-29983,-29983,-29984,-29984,-29985,-29987,-29988,-29988,-29989,-29989,
-29990]} 1. e4 {[%emt 0:00:04]} e5 {[%emt 0:02:42]} 2. Nf3 {[%emt 0:00:09]} Nc6
{[%emt 0:00:29]} 3. Nc3 {[%emt 0:00:08]} Nf6 {[%emt 0:00:26]} 4. Bb5 {[%emt 0:
00:00]} Bb4 {[%emt 0:02:23]} 5. O-O {[%emt 0:00:12]} O-O {[%emt 0:00:53]} 6.
Bxc6 {[%emt 0:00:11]} dxc6 {[%emt 0:03:25]} 7. Nxe5 {[%emt 0:00:11]} Bxc3 {
[%emt 0:08:51]} 8. dxc3 {[%emt 0:00:11]} Nxe4 {[%emt 0:00:22]} 9. Qxd8 {
[%emt 0:10:32]} Rxd8 {[%emt 0:02:01]} 10. Bf4 {[%emt 0:00:16] [#] C49: Four
Knights: 4 Bb5 Bb4.} Nd6 $146 {[%emt 0:07:07]} ({Predecessor:} 10... Nc5 11.
Nf3 Ne6 12. Rad1 {½-½ (12) Munoz Pantoja,M (2471)-Tarriba Martinez,L (1935)
Barcelona 2020}) 11. Rad1 {[%emt 0:03:06]} Be6 {[%emt 0:03:59]} 12. a3 {
[%emt 0:02:59] The position is equal.} a5 {[%emt 0:01:22]} 13. a4 {[%emt 0:00:
00]} f6 {[%emt 0:05:20]} 14. Nd3 {[%emt 0:00:24]} b6 {[%emt 0:00:23]} 15. Rfe1
{[%emt 0:07:49]} Kf7 {[%emt 0:01:35]} 16. f3 {[%emt 0:01:10]} g5 {[%emt 0:00:
00]} 17. Bg3 {[%emt 0:08:14]} Rd7 {[%emt 0:02:16]} 18. b3 {[%emt 0:10:15]} Rad8
{[%emt 0:03:55]} 19. Nf2 {[%emt 0:00:30]} Bf5 {[%emt 0:06:50]} 20. Re2 {
[%emt 0:12:16]} Nb7 {[%emt 0:05:04]} 21. Rde1 {[%emt 0:05:58]} b5 {[%emt 0:00:
00]} 22. h4 {[%emt 0:02:01]} h6 {[%emt 0:02:58]} 23. hxg5 {[%emt 0:00:06]} hxg5
{[%emt 0:00:07]} 24. Ng4 {[%emt 0:08:44]} bxa4 {[%emt 0:21:47]} 25. Nh6+ {
[%emt 0:02:53]} Kg6 {[%emt 0:00:18]} 26. Nxf5 {[%emt 0:00:04]} Kxf5 {[%emt 0:
00:00]} 27. bxa4 {[%emt 0:00:04]} Nc5 {[%emt 0:00:15] Prevents Re6.} 28. Bf2 {
[%emt 0:04:51]} Nxa4 {[%emt 0:01:36]} 29. Re6 {[%emt 0:00:07]} Rd6 {[%emt 0:00:
00]} 30. Re7 {[%emt 0:03:58]} (30. g4+ $11 {keeps the balance.} Kg6 31. Bg3
Rxe6 32. Rxe6) 30... R8d7 {[%emt 0:03:17]} (30... Nxc3 $17 31. Rxc7 Kg6) 31.
Rxd7 $15 {[%emt 0:02:37]} ({Reject} 31. g4+ Kg6 32. Rxd7 Rxd7 $17) 31... Rxd7 {
[%emt 0:00:02] Endgame KRB-KRN} 32. Ra1 {[%emt 0:00:06]} Nxc3 {[%emt 0:00:23]
aiming for ...Rd1+.} 33. Rxa5+ {[%emt 0:00:01]} Rd5 {[%emt 0:00:00]} 34. Ra7 {
[%emt 0:00:48]} (34. Ra6 $11) 34... Nb5 {[%emt 0:00:26]} (34... Rd1+ $17 35.
Kh2 Rd2 36. Ra5+ Nb5) 35. Ra6 {[%emt 0:00:41]} (35. Ra1 $1 $15 Nd6 36. Kf1)
35... Rd1+ $19 {[%emt 0:00:41]} 36. Kh2 {[%emt 0:00:05]} Rd2 $1 {[%emt 0:00:06]
[%csl Yc2,Yf2]} 37. Rxc6 $2 {[%emt 0:04:31]} (37. Bg3) 37... Rxf2 {[%emt 0:00:
18] KRN-KR} 38. Rc5+ {[%emt 0:00:03]} Ke6 {[%emt 0:00:25]} (38... Kf4 $142 {
Strongly threatening ...Nd4.} 39. Rxb5 Rxc2 40. Rb4+ Ke5) 39. Rxb5 {[%emt 0:00:
03]} (39. Kg3 {was the only defense.} Re2 40. Rxb5) 39... Rxc2 {[%emt 0:00:06]
KR-KR} 40. Kg3 {[%emt 0:01:11]} c5 {[%emt 0:01:26]} 41. f4 {[%emt 0:31:15]} Kf5
{[%emt 0:32:59]} 42. fxg5 {[%emt 0:00:28]} Kxg5 {[%emt 0:00:00]} (42... fxg5
$19 {and Black stays clearly on top. ...Rc3+ is the strong threat.} 43. Rb8
Rc3+ 44. Kf2 c4) 43. Ra5 {[%emt 0:00:00] [#]} (43. Rb6 $142) 43... f5 {[%emt 0:
00:00] Black is more active.} ({Black should try} 43... Rc3+ $1 $17 44. Kf2 Kg4
) 44. Kf3 {[%emt 0:00:00] [#]} ({Better is} 44. Ra8 $15) 44... Rc3+ $1 $17 {
[%emt 0:00:00]} 45. Kf2 $2 {[%emt 0:00:00]} (45. Ke2 $17) 45... Kf4 $19 {
[%emt 0:00:00]} 46. Ra4+ {[%emt 0:00:00]} c4 {[%emt 0:00:00][%cal Yc5c4,Yc4c3,
Yc3c2] Hoping for ...Rc2+.} 47. Ra5 {[%emt 0:00:00]} Rc2+ {[%emt 0:00:00]} 48.
Kg1 {[%emt 0:00:00]} c3 {[%emt 0:00:00] Black mates.} 49. Kh2 {[%emt 0:00:00]}
Rd2 {[%emt 0:00:00]} 50. Rc5 {[%emt 0:00:00]} c2 {[%emt 0:00:00]} 51. Kh3 {
[%emt 0:00:03]} Ke3 {[%emt 0:00:00]} 52. g3 {[%emt 0:00:39]} f4 {[%emt 0:00:00]
} 53. gxf4 {[%emt 0:04:56]} Kd4 {[%emt 0:00:00]} 54. Rc8 {[%emt 0:00:27]} Rd3+
{[%emt 0:00:00]} 55. Kg4 {[%emt 0:00:03]} Rc3 {[%emt 0:00:00]} 56. Rd8+ {
[%emt 0:00:10]} Ke3 {[%emt 0:00:00]} 57. Re8+ {[%emt 0:00:06]} Kf2 {[%emt 0:00:
00] Weighted Error Value: White=0.62/Black=0.25 (precise)} 0-1